[Event "Titled Tuesday Blitz May 23 Late 2023"]
[White "D`Arruda, Ricardo D."]
[Black "Alahakoon, Isuru"]
[WhiteFideId "100692"]
[BlackFideId "9900993"]
[WhiteElo "2435"]
[BlackElo "1953"]
[Result "1-0"]
[Round "08"]
[TimeControl "180+2"]
[Date "2023.05.23"]
[WhiteClock "0:01:55"]
[BlackClock "0:00:20"]

1. d4 {[%clk 0:03:00]}  d5 {[%clk 0:02:59]} 2. Nf3 {[%clk 0:03:00]}  Bf5 {[%clk 0:02:58]} 3. c4 {[%clk 0:02:58]}  e6 {[%clk 0:02:58]} 4. Nc3 {[%clk 0:02:57]}  Nc6 {[%clk 0:02:58]} 5. a3 {[%clk 0:02:41]}  dxc4 {[%clk 0:02:53]} 6. e4 {[%clk 0:02:40]}  Bg4 {[%clk 0:02:53]} 7. Be3 {[%clk 0:02:40]}  Na5 {[%clk 0:02:42]} 8. Bxc4 {[%clk 0:02:38]}  Nxc4 {[%clk 0:02:41]} 9. Qa4+ {[%clk 0:02:38]}  c6 {[%clk 0:02:41]} 10. Qxc4 {[%clk 0:02:39]}  Bxf3 {[%clk 0:02:41]} 11. gxf3 {[%clk 0:02:39]}  Nf6 {[%clk 0:02:39]} 12. h4 {[%clk 0:02:38]}  Nh5 {[%clk 0:02:37]} 13. O-O-O {[%clk 0:02:35]}  Bd6 {[%clk 0:02:25]} 14. d5 {[%clk 0:02:24]}  cxd5 {[%clk 0:02:22]} 15. exd5 {[%clk 0:02:25]}  e5 {[%clk 0:02:15]} 16. Kb1 {[%clk 0:02:12]}  O-O {[%clk 0:02:13]} 17. Rhg1 {[%clk 0:02:10]}  Rc8 {[%clk 0:02:11]} 18. Qg4 {[%clk 0:02:05]}  Qa5 {[%clk 0:00:31]} 19. Qxh5 {[%clk 0:01:58]}  Bxa3 {[%clk 0:00:29]} 20. Rxg7+ {[%clk 0:01:55]}  Kxg7 {[%clk 0:00:24]} 21. Qh6+ {[%clk 0:01:55]}  Kh8 {[%clk 0:00:22]} 22. Qf6+ {[%clk 0:01:54]}  Kg8 {[%clk 0:00:20]} 23. Rg1# {[%clk 0:01:55]} 1-0


[Site "https://www.chess.com"]

[Event "Titled Tuesday Blitz May 23 Late 2023"]
[White "Zampronha, Wladimir Camilo"]
[Black "Dudzinski, Pawel"]
[WhiteFideId "2103087"]
[BlackFideId "1117890"]
[WhiteElo "2176"]
[BlackElo "2099"]
[Result "0-1"]
[Round "08"]
[TimeControl "180+2"]
[Date "2023.05.23"]
[WhiteClock "0:00:00"]
[BlackClock "0:00:20"]

1. e4 {[%clk 0:03:00]}  c6 {[%clk 0:02:57]} 2. d4 {[%clk 0:03:00]}  d5 {[%clk 0:02:57]} 3. e5 {[%clk 0:03:00]}  c5 {[%clk 0:02:57]} 4. Nf3 {[%clk 0:03:01]}  Bg4 {[%clk 0:02:55]} 5. dxc5 {[%clk 0:02:57]}  Bxf3 {[%clk 0:02:55]} 6. Qxf3 {[%clk 0:02:54]}  e6 {[%clk 0:02:55]} 7. c4 {[%clk 0:02:54]}  Bxc5 {[%clk 0:02:53]} 8. cxd5 {[%clk 0:02:53]}  Qxd5 {[%clk 0:02:53]} 9. Qxd5 {[%clk 0:02:52]}  exd5 {[%clk 0:02:54]} 10. Nc3 {[%clk 0:02:53]}  Ne7 {[%clk 0:02:55]} 11. Bg5 {[%clk 0:02:43]}  Nbc6 {[%clk 0:02:54]} 12. Rd1 {[%clk 0:02:34]}  O-O-O {[%clk 0:02:46]} 13. Bb5 {[%clk 0:02:32]}  h6 {[%clk 0:02:41]} 14. Bxc6 {[%clk 0:02:27]}  bxc6 {[%clk 0:02:41]} 15. Bxe7 {[%clk 0:02:15]}  Bxe7 {[%clk 0:02:42]} 16. O-O {[%clk 0:02:10]}  Rhe8 {[%clk 0:02:35]} 17. f4 {[%clk 0:02:08]}  f6 {[%clk 0:02:32]} 18. exf6 {[%clk 0:02:02]}  Bxf6 {[%clk 0:02:32]} 19. Rc1 {[%clk 0:02:02]}  Bxc3 {[%clk 0:02:27]} 20. Rxc3 {[%clk 0:02:01]}  Kd7 {[%clk 0:02:23]} 21. Kf2 {[%clk 0:01:45]}  Kd6 {[%clk 0:02:21]} 22. Rfc1 {[%clk 0:01:36]}  Rc8 {[%clk 0:02:19]} 23. Kf3 {[%clk 0:01:29]}  c5 {[%clk 0:02:18]} 24. g4 {[%clk 0:01:24]}  d4 {[%clk 0:02:11]} 25. Rc4 {[%clk 0:01:22]}  Re3+ {[%clk 0:02:07]} 26. Kf2 {[%clk 0:01:17]}  Kd5 {[%clk 0:02:06]} 27. b4 {[%clk 0:01:15]}  Ke4 {[%clk 0:01:52]} 28. Rxc5 {[%clk 0:01:06]}  Rf3+ {[%clk 0:01:31]} 29. Kg2 {[%clk 0:01:03]}  Rxc5 {[%clk 0:01:31]} 30. bxc5 {[%clk 0:01:02]}  Rxf4 {[%clk 0:01:31]} 31. c6 {[%clk 0:01:01]}  Rf8 {[%clk 0:01:31]} 32. c7 {[%clk 0:00:59]}  Rc8 {[%clk 0:01:32]} 33. Kf2 {[%clk 0:00:55]}  d3 {[%clk 0:01:24]} 34. Rc6 {[%clk 0:00:50]}  Kd5 {[%clk 0:01:15]} 35. Rc1 {[%clk 0:00:49]}  d2 {[%clk 0:01:02]} 36. Rd1 {[%clk 0:00:49]}  Rxc7 {[%clk 0:01:01]} 37. Rxd2+ {[%clk 0:00:50]}  Ke4 {[%clk 0:01:02]} 38. h3 {[%clk 0:00:43]}  g5 {[%clk 0:00:57]} 39. Rb2 {[%clk 0:00:39]}  Rc4 {[%clk 0:00:49]} 40. Rd2 {[%clk 0:00:36]}  a5 {[%clk 0:00:44]} 41. Rb2 {[%clk 0:00:33]}  a4 {[%clk 0:00:44]} 42. Kg2 {[%clk 0:00:31]}  a3 {[%clk 0:00:41]} 43. Rb6 {[%clk 0:00:16]}  Rc2+ {[%clk 0:00:38]} 44. Kg3 {[%clk 0:00:16]}  Rxa2 {[%clk 0:00:38]} 45. Rxh6 {[%clk 0:00:17]}  Rb2 {[%clk 0:00:32]} 46. Ra6 {[%clk 0:00:14]}  Rb3+ {[%clk 0:00:31]} 47. Kg2 {[%clk 0:00:14]}  Kd3 {[%clk 0:00:31]} 48. Ra5 {[%clk 0:00:14]}  Rb2+ {[%clk 0:00:18]} 49. Kg3 {[%clk 0:00:13]}  a2 {[%clk 0:00:19]} 50. h4 {[%clk 0:00:12]}  Kc4 {[%clk 0:00:19]} 51. hxg5 {[%clk 0:00:11]}  Kb4 {[%clk 0:00:19]} 52. Rxa2 {[%clk 0:00:07]}  Rxa2 {[%clk 0:00:20]} 53. g6 {[%clk 0:00:04]}  Kc5 {[%clk 0:00:20]} 54. Kf4 {[%clk 0:00:04]}  Kd6 {[%clk 0:00:20]} 55. Kf5 {[%clk 0:00:03]}  Ke7 {[%clk 0:00:21]} 56. Kg5 {[%clk 0:00:00]}  Kf8 {[%clk 0:00:20]} 0-1


[Site "https://www.chess.com"]

[Event "Titled Tuesday Blitz May 23 Late 2023"]
[White "Perez Rodriguez, Jennifer"]
[Black "olga-belka"]
[WhiteFideId "3507831"]
[WhiteElo "2116"]
[BlackElo "2273"]
[Result "1-0"]
[Round "08"]
[TimeControl "180+2"]
[Date "2023.05.23"]
[WhiteClock "0:00:41"]
[BlackClock "0:00:00"]

1. e4 {[%clk 0:02:54]}  c5 {[%clk 0:02:59]} 2. c3 {[%clk 0:02:53]}  Nf6 {[%clk 0:02:55]} 3. e5 {[%clk 0:02:53]}  Nd5 {[%clk 0:02:55]} 4. Nf3 {[%clk 0:02:53]}  d6 {[%clk 0:02:53]} 5. d4 {[%clk 0:02:54]}  cxd4 {[%clk 0:02:53]} 6. cxd4 {[%clk 0:02:55]}  Nc6 {[%clk 0:02:53]} 7. Bc4 {[%clk 0:02:55]}  Nb6 {[%clk 0:02:52]} 8. Bxf7+ {[%clk 0:02:56]}  Kxf7 {[%clk 0:02:51]} 9. e6+ {[%clk 0:02:55]}  Ke8 {[%clk 0:02:39]} 10. d5 {[%clk 0:02:49]}  Ne5 {[%clk 0:02:34]} 11. O-O {[%clk 0:02:47]}  g6 {[%clk 0:02:31]} 12. Ng5 {[%clk 0:02:42]}  Bg7 {[%clk 0:02:29]} 13. f4 {[%clk 0:02:43]}  h6 {[%clk 0:02:22]} 14. Ne4 {[%clk 0:02:32]}  Nxd5 {[%clk 0:02:02]} 15. Qxd5 {[%clk 0:02:25]}  Qb6+ {[%clk 0:02:02]} 16. Kh1 {[%clk 0:02:23]}  Ng4 {[%clk 0:02:02]} 17. Nbc3 {[%clk 0:02:06]}  Rf8 {[%clk 0:01:53]} 18. h3 {[%clk 0:01:58]}  Nf6 {[%clk 0:01:50]} 19. Nxf6+ {[%clk 0:01:58]}  Rxf6 {[%clk 0:01:45]} 20. f5 {[%clk 0:01:57]}  gxf5 {[%clk 0:01:42]} 21. Re1 {[%clk 0:01:42]}  Qc6 {[%clk 0:01:24]} 22. Bf4 {[%clk 0:01:33]}  Rg6 {[%clk 0:01:19]} 23. Rac1 {[%clk 0:01:17]}  Bxc3 {[%clk 0:01:12]} 24. Qxc6+ {[%clk 0:01:13]}  bxc6 {[%clk 0:01:12]} 25. Rxc3 {[%clk 0:01:14]}  Bxe6 {[%clk 0:00:57]} 26. Rxc6 {[%clk 0:01:11]}  Bd5 {[%clk 0:00:52]} 27. Rxd6 {[%clk 0:01:02]}  Bxg2+ {[%clk 0:00:49]} 28. Kh2 {[%clk 0:01:02]}  Rxd6 {[%clk 0:00:25]} 29. Bxd6 {[%clk 0:01:03]}  Kd7 {[%clk 0:00:20]} 30. Bxe7 {[%clk 0:00:55]}  Be4 {[%clk 0:00:20]} 31. Bb4 {[%clk 0:00:52]}  Rg8 {[%clk 0:00:17]} 32. Re2 {[%clk 0:00:51]}  Ke6 {[%clk 0:00:13]} 33. Bd2 {[%clk 0:00:49]}  h5 {[%clk 0:00:12]} 34. Bf4 {[%clk 0:00:48]}  Rc8 {[%clk 0:00:12]} 35. Kg3 {[%clk 0:00:46]}  Rg8+ {[%clk 0:00:09]} 36. Kh2 {[%clk 0:00:44]}  Kf6 {[%clk 0:00:07]} 37. h4 {[%clk 0:00:43]}  Rc8 {[%clk 0:00:00]} 38. Kg3 {[%clk 0:00:41]} 1-0


[Site "https://www.chess.com"]

[Event "Titled Tuesday Blitz May 23 Late 2023"]
[White "Sailer, Mike"]
[Black "Arencibia Monduy, Antonio"]
[WhiteFideId "2012901"]
[BlackFideId "3507939"]
[WhiteElo "2109"]
[BlackElo "2408"]
[Result "0-1"]
[Round "08"]
[TimeControl "180+2"]
[Date "2023.05.23"]
[WhiteClock "0:00:00"]
[BlackClock "0:00:03"]

1. d4 {[%clk 0:03:00]}  Nf6 {[%clk 0:02:57]} 2. Bg5 {[%clk 0:02:51]}  d5 {[%clk 0:02:52]} 3. Bxf6 {[%clk 0:02:48]}  exf6 {[%clk 0:02:49]} 4. e3 {[%clk 0:02:49]}  Bd6 {[%clk 0:02:43]} 5. c4 {[%clk 0:02:48]}  dxc4 {[%clk 0:02:44]} 6. Bxc4 {[%clk 0:02:48]}  O-O {[%clk 0:02:45]} 7. Nc3 {[%clk 0:02:47]}  c6 {[%clk 0:02:43]} 8. a3 {[%clk 0:02:33]}  f5 {[%clk 0:02:42]} 9. Nge2 {[%clk 0:02:31]}  Nd7 {[%clk 0:02:42]} 10. O-O {[%clk 0:02:29]}  Nf6 {[%clk 0:02:42]} 11. g3 {[%clk 0:02:25]}  Re8 {[%clk 0:02:34]} 12. b4 {[%clk 0:02:21]}  a6 {[%clk 0:02:30]} 13. Qb3 {[%clk 0:02:16]}  Qe7 {[%clk 0:02:16]} 14. Nf4 {[%clk 0:02:06]}  Ne4 {[%clk 0:02:02]} 15. Nxe4 {[%clk 0:01:57]}  fxe4 {[%clk 0:02:02]} 16. d5 {[%clk 0:01:26]}  b5 {[%clk 0:01:30]} 17. Be2 {[%clk 0:01:20]}  cxd5 {[%clk 0:01:11]} 18. Qxd5 {[%clk 0:01:04]}  Bb7 {[%clk 0:01:07]} 19. Qf5 {[%clk 0:01:00]}  g6 {[%clk 0:01:04]} 20. Qh3 {[%clk 0:00:56]}  Be5 {[%clk 0:01:02]} 21. Rac1 {[%clk 0:00:54]}  Bb2 {[%clk 0:00:43]} 22. Rc5 {[%clk 0:00:45]}  Bxa3 {[%clk 0:00:41]} 23. Qh6 {[%clk 0:00:17]}  Bxb4 {[%clk 0:00:24]} 24. Rh5 {[%clk 0:00:17]}  gxh5 {[%clk 0:00:21]} 25. Nxh5 {[%clk 0:00:17]}  Bc3 {[%clk 0:00:21]} 26. Rc1 {[%clk 0:00:13]}  Bh8 {[%clk 0:00:14]} 27. Rc7 {[%clk 0:00:09]}  Qxc7 {[%clk 0:00:05]} 28. Qg5+ {[%clk 0:00:09]}  Kf8 {[%clk 0:00:06]} 29. Qh6+ {[%clk 0:00:06]}  Ke7 {[%clk 0:00:06]} 30. Qg5+ {[%clk 0:00:05]}  f6 {[%clk 0:00:06]} 31. Qh6 {[%clk 0:00:01]}  Bd5 {[%clk 0:00:04]} 32. Qxh7+ {[%clk 0:00:02]}  Bf7 {[%clk 0:00:04]} 33. Qxe4+ {[%clk 0:00:02]}  Qe5 {[%clk 0:00:03]} 34. Qb7+ {[%clk 0:00:00]}  Kf8 {[%clk 0:00:03]} 0-1


[Site "https://www.chess.com"]

[Event "Titled Tuesday Blitz May 23 Late 2023"]
[White "Parizek, Vojtech"]
[Black "Seletsky, Grigory"]
[WhiteFideId "360996"]
[BlackFideId "14112191"]
[WhiteElo "2115"]
[BlackElo "2491"]
[Result "0-1"]
[Round "08"]
[TimeControl "180+2"]
[Date "2023.05.23"]
[WhiteClock "0:00:03"]
[BlackClock "0:00:30"]

1. e4 {[%clk 0:03:00]}  Nf6 {[%clk 0:02:53]} 2. e5 {[%clk 0:03:00]}  Nd5 {[%clk 0:02:54]} 3. d4 {[%clk 0:02:59]}  d6 {[%clk 0:02:53]} 4. c4 {[%clk 0:03:00]}  Nb6 {[%clk 0:02:53]} 5. f4 {[%clk 0:03:00]}  dxe5 {[%clk 0:02:52]} 6. fxe5 {[%clk 0:03:01]}  Nc6 {[%clk 0:02:52]} 7. Be3 {[%clk 0:03:00]}  Bf5 {[%clk 0:02:52]} 8. Nc3 {[%clk 0:03:00]}  e6 {[%clk 0:02:52]} 9. Nf3 {[%clk 0:03:00]}  Be7 {[%clk 0:02:51]} 10. Be2 {[%clk 0:02:56]}  O-O {[%clk 0:02:51]} 11. O-O {[%clk 0:02:55]}  h6 {[%clk 0:02:43]} 12. Qd2 {[%clk 0:02:52]}  Bh7 {[%clk 0:02:41]} 13. Rad1 {[%clk 0:02:49]}  Qc8 {[%clk 0:02:37]} 14. Qe1 {[%clk 0:02:31]}  Rd8 {[%clk 0:02:34]} 15. Qg3 {[%clk 0:02:28]}  Kh8 {[%clk 0:02:33]} 16. d5 {[%clk 0:02:24]}  exd5 {[%clk 0:02:30]} 17. cxd5 {[%clk 0:02:25]}  Nb4 {[%clk 0:02:30]} 18. Nd4 {[%clk 0:01:54]}  Rf8 {[%clk 0:02:07]} 19. Bg4 {[%clk 0:01:43]}  Qd8 {[%clk 0:02:02]} 20. e6 {[%clk 0:01:18]}  N4xd5 {[%clk 0:01:57]} 21. exf7 {[%clk 0:01:09]}  Nxe3 {[%clk 0:01:44]} 22. Qxe3 {[%clk 0:01:10]}  Bc5 {[%clk 0:01:30]} 23. Kh1 {[%clk 0:01:07]}  Nc4 {[%clk 0:01:25]} 24. Qe2 {[%clk 0:00:56]}  Bxd4 {[%clk 0:01:20]} 25. Qxc4 {[%clk 0:00:55]}  c5 {[%clk 0:01:21]} 26. Nb5 {[%clk 0:00:44]}  Bg6 {[%clk 0:01:13]} 27. Nxd4 {[%clk 0:00:43]}  cxd4 {[%clk 0:01:02]} 28. Rxd4 {[%clk 0:00:43]}  Qe7 {[%clk 0:00:55]} 29. Be6 {[%clk 0:00:33]}  Rad8 {[%clk 0:00:47]} 30. Rxd8 {[%clk 0:00:26]}  Rxd8 {[%clk 0:00:39]} 31. h3 {[%clk 0:00:24]}  Bd3 {[%clk 0:00:35]} 32. Qb3 {[%clk 0:00:20]}  Bxf1 {[%clk 0:00:34]} 33. Qe3 {[%clk 0:00:08]}  Bc4 {[%clk 0:00:32]} 34. f8=Q+ {[%clk 0:00:03]}  Rxf8 {[%clk 0:00:30]} 0-1


[Site "https://www.chess.com"]

[Event "Titled Tuesday Blitz May 23 Late 2023"]
[White "Santos Flores, Alberto"]
[Black "Harish, Neeraj"]
[WhiteFideId "3601234"]
[BlackFideId "30958130"]
[WhiteElo "2235"]
[BlackElo "1879"]
[Result "1-0"]
[Round "08"]
[TimeControl "180+2"]
[Date "2023.05.23"]
[WhiteClock "0:01:00"]
[BlackClock "0:00:15"]

1. e4 {[%clk 0:03:00]}  e5 {[%clk 0:02:54]} 2. Nf3 {[%clk 0:02:59]}  Nc6 {[%clk 0:02:54]} 3. Bc4 {[%clk 0:03:00]}  Nf6 {[%clk 0:02:54]} 4. d3 {[%clk 0:03:00]}  Bc5 {[%clk 0:02:53]} 5. c3 {[%clk 0:03:00]}  O-O {[%clk 0:02:52]} 6. O-O {[%clk 0:02:59]}  d6 {[%clk 0:02:51]} 7. Bb3 {[%clk 0:02:57]}  h6 {[%clk 0:02:50]} 8. h3 {[%clk 0:02:57]}  a5 {[%clk 0:02:51]} 9. Re1 {[%clk 0:02:55]}  Ba7 {[%clk 0:02:43]} 10. Nbd2 {[%clk 0:02:55]}  Be6 {[%clk 0:02:43]} 11. Nf1 {[%clk 0:02:55]}  Bxb3 {[%clk 0:02:35]} 12. Qxb3 {[%clk 0:02:53]}  Qd7 {[%clk 0:02:29]} 13. Ng3 {[%clk 0:02:51]}  a4 {[%clk 0:02:28]} 14. Qd1 {[%clk 0:02:50]}  Ne7 {[%clk 0:02:21]} 15. Nh4 {[%clk 0:02:49]}  Ng6 {[%clk 0:01:48]} 16. Nhf5 {[%clk 0:02:49]}  c6 {[%clk 0:01:43]} 17. Qf3 {[%clk 0:02:48]}  Qe6 {[%clk 0:01:32]} 18. h4 {[%clk 0:02:33]}  d5 {[%clk 0:01:20]} 19. h5 {[%clk 0:02:33]}  Ne7 {[%clk 0:01:16]} 20. Nxe7+ {[%clk 0:02:32]}  Qxe7 {[%clk 0:01:15]} 21. Nf5 {[%clk 0:02:33]}  Qe6 {[%clk 0:01:15]} 22. g4 {[%clk 0:02:24]}  dxe4 {[%clk 0:01:07]} 23. dxe4 {[%clk 0:02:25]}  Nh7 {[%clk 0:01:07]} 24. Kg2 {[%clk 0:02:11]}  Ng5 {[%clk 0:01:04]} 25. Bxg5 {[%clk 0:02:10]}  hxg5 {[%clk 0:01:05]} 26. Rad1 {[%clk 0:01:57]}  Rad8 {[%clk 0:01:00]} 27. a3 {[%clk 0:01:55]}  Bb6 {[%clk 0:00:47]} 28. Rxd8 {[%clk 0:01:52]}  Rxd8 {[%clk 0:00:46]} 29. Rd1 {[%clk 0:01:53]}  Rxd1 {[%clk 0:00:24]} 30. Qxd1 {[%clk 0:01:54]}  Kh7 {[%clk 0:00:25]} 31. Qd6 {[%clk 0:01:47]}  Qc4 {[%clk 0:00:19]} 32. Qxe5 {[%clk 0:01:31]}  f6 {[%clk 0:00:18]} 33. Qe7 {[%clk 0:01:29]}  Qg8 {[%clk 0:00:17]} 34. h6 {[%clk 0:01:28]}  Kg6 {[%clk 0:00:16]} 35. Qxg7+ {[%clk 0:01:13]}  Qxg7 {[%clk 0:00:16]} 36. hxg7 {[%clk 0:01:14]}  Kf7 {[%clk 0:00:16]} 37. f3 {[%clk 0:01:13]}  Kg8 {[%clk 0:00:15]} 38. Kf1 {[%clk 0:01:13]}  Bc5 {[%clk 0:00:16]} 39. Ke2 {[%clk 0:01:13]}  b5 {[%clk 0:00:16]} 40. Kd3 {[%clk 0:01:13]}  Bb6 {[%clk 0:00:15]} 41. c4 {[%clk 0:01:13]}  Bc5 {[%clk 0:00:15]} 42. Kc3 {[%clk 0:01:08]}  Kh7 {[%clk 0:00:14]} 43. Nd4 {[%clk 0:01:04]}  Kxg7 {[%clk 0:00:12]} 44. Nxc6 {[%clk 0:01:04]}  bxc4 {[%clk 0:00:12]} 45. Kxc4 {[%clk 0:01:04]}  Bd6 {[%clk 0:00:13]} 46. Kb5 {[%clk 0:01:04]}  Kf7 {[%clk 0:00:13]} 47. Kxa4 {[%clk 0:01:04]}  Ke6 {[%clk 0:00:14]} 48. b4 {[%clk 0:01:04]}  Bc7 {[%clk 0:00:14]} 49. Kb3 {[%clk 0:01:02]}  Kd6 {[%clk 0:00:15]} 50. Nd4 {[%clk 0:01:02]}  Ke5 {[%clk 0:00:16]} 51. Ne2 {[%clk 0:01:02]}  Bb6 {[%clk 0:00:15]} 52. a4 {[%clk 0:01:02]}  Be3 {[%clk 0:00:15]} 53. a5 {[%clk 0:01:02]}  Kd6 {[%clk 0:00:15]} 54. Kc4 {[%clk 0:01:02]}  Kc6 {[%clk 0:00:15]} 55. b5+ {[%clk 0:01:02]}  Kb7 {[%clk 0:00:16]} 56. Kd5 {[%clk 0:01:01]}  Bf2 {[%clk 0:00:15]} 57. Ke6 {[%clk 0:01:00]}  Be3 {[%clk 0:00:16]} 58. Kxf6 {[%clk 0:01:00]}  Bd2 {[%clk 0:00:17]} 59. a6+ {[%clk 0:01:00]}  Kb6 {[%clk 0:00:17]} 60. e5 {[%clk 0:01:00]}  Be3 {[%clk 0:00:17]} 61. e6 {[%clk 0:01:00]}  Kxb5 {[%clk 0:00:18]} 62. e7 {[%clk 0:01:01]}  Kxa6 {[%clk 0:00:15]} 63. e8=Q {[%clk 0:01:00]} 1-0


[Site "https://www.chess.com"]

[Event "Titled Tuesday Blitz May 23 Late 2023"]
[White "kiwibobo"]
[Black "Petrovic, Aleksa"]
[BlackFideId "967629"]
[WhiteElo "2193"]
[BlackElo "2309"]
[Result "1-0"]
[Round "08"]
[TimeControl "180+2"]
[Date "2023.05.23"]
[WhiteClock "0:00:06"]
[BlackClock "0:00:01"]

1. e4 {[%clk 0:03:00]}  d5 {[%clk 0:02:56]} 2. exd5 {[%clk 0:03:00]}  Qxd5 {[%clk 0:02:57]} 3. Nc3 {[%clk 0:03:00]}  Qe5+ {[%clk 0:02:57]} 4. Be2 {[%clk 0:02:58]}  Bg4 {[%clk 0:02:57]} 5. d4 {[%clk 0:02:51]}  Bxe2 {[%clk 0:02:57]} 6. Ngxe2 {[%clk 0:02:50]}  Qa5 {[%clk 0:02:58]} 7. O-O {[%clk 0:02:49]}  c6 {[%clk 0:02:58]} 8. a3 {[%clk 0:02:41]}  e6 {[%clk 0:02:57]} 9. Bf4 {[%clk 0:02:40]}  Nf6 {[%clk 0:02:56]} 10. Ng3 {[%clk 0:02:26]}  Be7 {[%clk 0:02:48]} 11. Nge4 {[%clk 0:02:26]}  O-O {[%clk 0:02:34]} 12. Qf3 {[%clk 0:02:05]}  Nbd7 {[%clk 0:02:28]} 13. Nd6 {[%clk 0:02:01]}  Qb6 {[%clk 0:01:53]} 14. Rfd1 {[%clk 0:01:41]}  Qxb2 {[%clk 0:01:33]} 15. Rdb1 {[%clk 0:01:18]}  Qxc2 {[%clk 0:01:04]} 16. Rxb7 {[%clk 0:01:07]}  Rab8 {[%clk 0:00:52]} 17. Rxb8 {[%clk 0:00:53]}  Rxb8 {[%clk 0:00:53]} 18. Nc4 {[%clk 0:00:48]}  Rb3 {[%clk 0:00:20]} 19. Rc1 {[%clk 0:00:39]}  Qf5 {[%clk 0:00:20]} 20. Nd2 {[%clk 0:00:24]}  Nd5 {[%clk 0:00:15]} 21. Nxd5 {[%clk 0:00:17]}  exd5 {[%clk 0:00:06]} 22. Nxb3 {[%clk 0:00:16]}  Nf6 {[%clk 0:00:06]} 23. Bg3 {[%clk 0:00:15]}  Qc8 {[%clk 0:00:05]} 24. h3 {[%clk 0:00:15]}  Ne4 {[%clk 0:00:05]} 25. Na5 {[%clk 0:00:11]}  Qa6 {[%clk 0:00:04]} 26. Nxc6 {[%clk 0:00:06]}  Bf8 {[%clk 0:00:04]} 27. Ne5 {[%clk 0:00:05]}  Qe6 {[%clk 0:00:03]} 28. Rc6 {[%clk 0:00:05]}  Qe8 {[%clk 0:00:03]} 29. Rc7 {[%clk 0:00:05]}  Nf6 {[%clk 0:00:03]} 30. Rxf7 {[%clk 0:00:05]}  Bd6 {[%clk 0:00:02]} 31. Rxa7 {[%clk 0:00:05]}  Bxe5 {[%clk 0:00:03]} 32. dxe5 {[%clk 0:00:06]}  Ne4 {[%clk 0:00:02]} 33. e6 {[%clk 0:00:06]}  Qxe6 {[%clk 0:00:01]} 34. Ra8+ {[%clk 0:00:06]} 1-0


[Site "https://www.chess.com"]

[Event "Titled Tuesday Blitz May 23 Late 2023"]
[White "zsizsi99"]
[Black "ritanovikova"]
[WhiteElo "2380"]
[BlackElo "2175"]
[Result "1-0"]
[Round "08"]
[TimeControl "180+2"]
[Date "2023.05.23"]
[WhiteClock "0:01:10"]
[BlackClock "0:00:13"]

1. e4 {[%clk 0:02:54]}  d5 {[%clk 0:02:57]} 2. exd5 {[%clk 0:02:51]}  Qxd5 {[%clk 0:02:58]} 3. Nc3 {[%clk 0:02:50]}  Qd6 {[%clk 0:02:58]} 4. d4 {[%clk 0:02:51]}  Nf6 {[%clk 0:02:59]} 5. Nf3 {[%clk 0:02:51]}  Bf5 {[%clk 0:02:58]} 6. Ne5 {[%clk 0:02:51]}  Nbd7 {[%clk 0:02:57]} 7. Bf4 {[%clk 0:02:50]}  Nxe5 {[%clk 0:02:57]} 8. Bxe5 {[%clk 0:02:48]}  Qd7 {[%clk 0:02:54]} 9. Qf3 {[%clk 0:02:38]}  c6 {[%clk 0:02:49]} 10. O-O-O {[%clk 0:02:37]}  e6 {[%clk 0:02:49]} 11. h3 {[%clk 0:02:33]}  h5 {[%clk 0:02:41]} 12. Bc4 {[%clk 0:02:22]}  Bd6 {[%clk 0:02:31]} 13. Bxf6 {[%clk 0:02:19]}  gxf6 {[%clk 0:02:31]} 14. g4 {[%clk 0:02:20]}  Bg6 {[%clk 0:02:11]} 15. Qxf6 {[%clk 0:02:19]}  Rg8 {[%clk 0:02:04]} 16. gxh5 {[%clk 0:02:14]}  Be7 {[%clk 0:02:02]} 17. Qf3 {[%clk 0:02:11]}  Bf5 {[%clk 0:01:56]} 18. d5 {[%clk 0:02:02]}  exd5 {[%clk 0:01:50]} 19. Nxd5 {[%clk 0:02:02]}  cxd5 {[%clk 0:01:46]} 20. Rxd5 {[%clk 0:01:56]}  Qc7 {[%clk 0:01:26]} 21. Bb5+ {[%clk 0:01:53]}  Kf8 {[%clk 0:01:22]} 22. Qxf5 {[%clk 0:01:52]}  Rc8 {[%clk 0:01:10]} 23. Rd7 {[%clk 0:01:45]}  Qc5 {[%clk 0:01:07]} 24. Qxc5 {[%clk 0:01:43]}  Bxc5 {[%clk 0:01:04]} 25. Rxb7 {[%clk 0:01:41]}  Bxf2 {[%clk 0:01:03]} 26. Rf1 {[%clk 0:01:36]}  Be3+ {[%clk 0:01:03]} 27. Kb1 {[%clk 0:01:36]}  Rg7 {[%clk 0:00:55]} 28. Bd3 {[%clk 0:01:33]}  Kg8 {[%clk 0:00:52]} 29. b3 {[%clk 0:01:32]}  a5 {[%clk 0:00:39]} 30. Bc4 {[%clk 0:01:31]}  Rf8 {[%clk 0:00:35]} 31. c3 {[%clk 0:01:22]}  Kh7 {[%clk 0:00:29]} 32. Rfxf7 {[%clk 0:01:20]}  Rgxf7 {[%clk 0:00:28]} 33. Rxf7+ {[%clk 0:01:21]}  Rxf7 {[%clk 0:00:22]} 34. Bxf7 {[%clk 0:01:21]}  Kh6 {[%clk 0:00:22]} 35. b4 {[%clk 0:01:20]}  axb4 {[%clk 0:00:22]} 36. cxb4 {[%clk 0:01:21]}  Bd2 {[%clk 0:00:21]} 37. b5 {[%clk 0:01:20]}  Kg7 {[%clk 0:00:21]} 38. b6 {[%clk 0:01:19]}  Kxf7 {[%clk 0:00:21]} 39. a4 {[%clk 0:01:12]}  Bf4 {[%clk 0:00:19]} 40. a5 {[%clk 0:01:10]}  Bd2 {[%clk 0:00:18]} 41. a6 {[%clk 0:01:10]}  Ba5 {[%clk 0:00:13]} 42. a7 {[%clk 0:01:10]} 1-0


[Site "https://www.chess.com"]

[Event "Titled Tuesday Blitz May 23 Late 2023"]
[White "Schuster, Karsten"]
[Black "Matute Escobar, Roxanny"]
[WhiteFideId "4611071"]
[BlackFideId "3926028"]
[WhiteElo "2254"]
[BlackElo "1844"]
[Result "0-1"]
[Round "08"]
[TimeControl "180+2"]
[Date "2023.05.23"]
[WhiteClock "0:01:44"]
[BlackClock "0:01:00"]

1. Nf3 {[%clk 0:02:59]}  Nf6 {[%clk 0:02:59]} 2. b3 {[%clk 0:02:59]}  g6 {[%clk 0:02:59]} 3. Bb2 {[%clk 0:02:59]}  Bg7 {[%clk 0:03:00]} 4. e3 {[%clk 0:02:59]}  O-O {[%clk 0:03:00]} 5. Be2 {[%clk 0:02:59]}  c5 {[%clk 0:02:59]} 6. O-O {[%clk 0:02:59]}  Nc6 {[%clk 0:02:59]} 7. c4 {[%clk 0:02:53]}  d5 {[%clk 0:02:50]} 8. cxd5 {[%clk 0:02:51]}  Qxd5 {[%clk 0:02:51]} 9. Nc3 {[%clk 0:02:50]}  Qd8 {[%clk 0:02:48]} 10. Qc1 {[%clk 0:02:50]}  Bf5 {[%clk 0:02:43]} 11. Rd1 {[%clk 0:02:42]}  Bd3 {[%clk 0:02:11]} 12. Ne1 {[%clk 0:02:37]}  Nb4 {[%clk 0:01:53]} 13. Nxd3 {[%clk 0:02:24]}  Nxd3 {[%clk 0:01:54]} 14. Bxd3 {[%clk 0:02:24]}  Qxd3 {[%clk 0:01:55]} 15. Na4 {[%clk 0:02:24]}  b6 {[%clk 0:01:52]} 16. Qc3 {[%clk 0:02:15]}  Rad8 {[%clk 0:01:49]} 17. h3 {[%clk 0:02:12]}  Qf5 {[%clk 0:01:18]} 18. d3 {[%clk 0:01:58]}  Rc8 {[%clk 0:01:04]} 19. Qc2 {[%clk 0:01:51]}  b5 {[%clk 0:01:00]} 20. Nc3 {[%clk 0:01:51]}  c4 {[%clk 0:01:00]} 21. dxc4 {[%clk 0:01:44]}  Qxc2 {[%clk 0:01:00]} 0-1


[Site "https://www.chess.com"]